bitfinex-derivatives/quotes_BTCF0:USTF0_20250117
["timestamp","ask_amount","ask_price","bid_price","bid_amount"]
[1737137405984,0.66342347,104290.0,104270.0,0.650035]
[1737137407283,0.66342347,104290.0,104270.0,0.73845847]
[1737137407483,0.66342347,104290.0,104270.0,0.70038476]
[1737137408894,0.44922347,104290.0,104270.0,0.70038476]
[1737137409191,0.08842347,104290.0,104270.0,0.70038476]
[1737137409988,1.29772347,104300.0,104270.0,0.70038476]
[1737137410491,1.2093,104300.0,104280.0,0.08842347]
[1737137410684,1.29772347,104300.0,104280.0,0.58242347]
[1737137410885,0.08842347,104290.0,104280.0,0.494]
[1737137411694,0.08842347,104290.0,104270.0,0.56402629]
[1737137411895,0.44922347,104290.0,104270.0,0.2413]
[1737137412085,0.44922347,104290.0,104270.0,0.83114845]
[1737137413095,0.44922347,104290.0,104270.0,0.6021]
[1737137415503,0.44922347,104290.0,104270.0,0.3608]
[1737137415796,0.3608,104280.0,104260.0,0.08842347]
[1737137416001,0.3608,104270.0,104260.0,0.13636347]
[1737137416184,0.3608,104270.0,104250.0,0.69269207]
[1737137416384,0.44922347,104260.0,104250.0,0.3064266]
[1737137416696,0.3608,104260.0,104250.0,0.3064266]
[1737137417594,0.3608,104260.0,104250.0,0.04122662]
[1737137417899,0.3608,104260.0,104240.0,0.33832347]
[1737137418089,0.3608,104250.0,104240.0,0.33832347]
[1737137418394,0.32715184,104250.0,104240.0,0.4200701]
[1737137418599,0.3428,104270.0,104250.0,0.047945]
[1737137418901,0.25027,104280.0,104270.0,0.047935]
[1737137419099,0.21730994,104280.0,104270.0,0.13635847]
[1737137419287,0.8686,104290.0,104270.0,0.39465847]
[1737137419491,0.8686,104290.0,104270.0,0.75545847]
[1737137420096,0.8686,104290.0,104280.0,0.08842347]
[1737137420299,1.2294,104290.0,104280.0,0.08842347]
[1737137421290,0.9752,104290.0,104280.0,0.13635447]
[1737137421495,0.71279,104290.0,104280.0,0.13635447]
[1737137421891,0.71279,104290.0,104280.0,0.08842347]
[1737137422796,0.71279,104290.0,104280.0,0.39652347]
[1737137423297,0.09008841,104290.0,104280.0,0.53287794]
[1737137423499,0.4608,104300.0,104280.0,0.53287794]
[1737137423790,0.4608,104300.0,104290.0,0.31556726]
[1737137423991,0.4608,104300.0,104290.0,0.08842347]
[1737137424391,0.4608,104300.0,104250.0,0.3608]
[1737137424695,0.3608,104270.0,104260.0,0.047937]
[1737137424993,0.3608,104280.0,104270.0,0.047935]
[1737137426700,0.3608,104280.0,104270.0,0.13635847]
[1737137426897,0.4608,104300.0,104280.0,0.04793]
[1737137427204,0.8674,104310.0,104290.0,0.13634947]
[1737137427395,0.8674,104310.0,104300.0,0.08842347]
[1737137429299,0.8674,104310.0,104270.0,0.00143796]
[1737137429495,0.3608,104280.0,104270.0,0.047931]
[1737137429698,0.3608,104290.0,104270.0,0.58557794]
[1737137429893,0.3608,104300.0,104280.0,0.22477794]
[1737137430187,0.3608,104300.0,104290.0,0.13634747]
[1737137433101,0.3608,104300.0,104290.0,0.047923]
[1737137434207,0.35837692,104300.0,104290.0,0.047923]
[1737137434414,0.35837692,104300.0,104290.0,0.341123]
[1737137434700,0.32453692,104300.0,104290.0,0.341123]
[1737137435809,0.25610692,104300.0,104290.0,0.42190891]
[1737137436512,0.25211325,104300.0,104290.0,0.42190891]
[1737137437006,0.61291325,104300.0,104270.0,0.20470837]
[1737137437207,0.3608,104280.0,104270.0,0.20470737]
[1737137437505,0.3608,104290.0,104280.0,0.04793]
[1737137437699,0.3608,104290.0,104280.0,0.00752583]
[1737137437899,0.29192,104290.0,104280.0,0.04793]
[1737137438098,0.2824,104290.0,104280.0,0.04793]
[1737137438308,0.21551734,104300.0,104280.0,0.22477694]
[1737137438603,0.21551734,104300.0,104290.0,0.13634947]
[1737137438802,0.18142734,104300.0,104290.0,0.13634947]
[1737137439203,0.000107,104300.0,104290.0,0.13634947]
[1737137440605,0.360907,104300.0,104270.0,0.07696035]
[1737137440910,0.360907,104300.0,104290.0,0.13634947]
[1737137441104,0.686597,104300.0,104290.0,0.13634947]
[1737137441811,0.686597,104300.0,104290.0,0.13500717]
[1737137443404,0.62919828,104300.0,104290.0,0.13500717]
[1737137443599,0.62919828,104300.0,104270.0,0.12489135]
[1737137443600,0.62919828,104300.0,104270.0,0.02902935]
[1737137443799,0.81002347,104280.0,104260.0,0.047936]
[1737137444004,0.3608,104270.0,104260.0,0.047936]
[1737137444208,0.3608,104270.0,104260.0,0.047938]
[1737137444421,0.3608,104260.0,104250.0,0.047944]
[1737137444608,1.03702347,104260.0,104240.0,0.047948]
[1737137444808,0.3608,104250.0,104240.0,0.047948]
[1737137445011,0.3608,104250.0,104240.0,0.13637147]
[1737137445308,0.36087398,104250.0,104240.0,0.047948]
[1737137445808,0.44929745,104250.0,104240.0,0.0478443]
[1737137446413,0.44401494,104250.0,104230.0,0.07805316]
[1737137446713,0.44929745,104240.0,104230.0,0.07805316]
[1737137447108,0.66707398,104240.0,104230.0,0.07805316]
[1737137448012,0.75542347,104240.0,104220.0,0.047957]
[1737137448202,1.04999745,104230.0,104220.0,0.047957]
[1737137448608,1.04992347,104230.0,104220.0,0.047957]
[1737137449212,0.9615,104230.0,104220.0,0.03098242]
[1737137449412,0.92865001,104230.0,104220.0,0.03098242]
[1737137450109,0.92872399,104230.0,104220.0,0.03098242]
[1737137450710,0.92865001,104230.0,104220.0,0.03098242]
[1737137450908,1.01707348,104230.0,104220.0,0.03098242]
[1737137451114,1.01707348,104230.0,104210.0,0.02928214]
[1737137451313,0.44922347,104220.0,104210.0,0.047963]
[1737137451607,0.74212347,104220.0,104200.0,0.12981621]
[1737137451807,0.36087398,104210.0,104200.0,0.21823968]
[1737137452618,0.66897398,104210.0,104200.0,0.26620468]
[1737137452918,0.3270517,104210.0,104200.0,0.26620468]
[1737137453113,0.6167417,104210.0,104200.0,0.26620468]
[1737137453315,0.5767417,104210.0,104200.0,0.26620468]
[1737137453825,0.25629663,104210.0,104200.0,0.26620468]
[1737137454521,0.25629663,104210.0,104200.0,0.28060468]
[1737137454723,0.25629663,104210.0,104200.0,0.26620468]
[1737137455619,0.25629663,104210.0,104200.0,0.28060468]
[1737137455820,0.25629663,104210.0,104200.0,0.26620468]
[1737137456123,0.23479663,104210.0,104200.0,0.26620468]
[1737137456313,0.23479663,104210.0,104200.0,0.28060468]
[1737137456521,0.20754663,104210.0,104200.0,0.28060468]
[1737137456717,0.20754663,104210.0,104200.0,0.26620468]
[1737137457022,0.20754663,104210.0,104200.0,0.28060468]
[1737137457224,0.20754663,104210.0,104200.0,0.26620468]
[1737137457422,0.17258663,104210.0,104200.0,0.26620468]
[1737137457725,0.18142,104220.0,104210.0,0.047963]
[1737137458018,0.217886,104230.0,104220.0,0.047958]
[1737137458223,0.27460008,104240.0,104230.0,0.047954]
[1737137458420,0.27460008,104240.0,104230.0,0.13637747]
[1737137458823,0.57250008,104240.0,104230.0,0.047954]
[1737137459127,0.53765008,104240.0,104230.0,0.13637747]
[1737137459814,0.53765008,104240.0,104230.0,0.08843653]
[1737137460019,0.53765008,104240.0,104230.0,0.08842347]
[1737137460221,0.53765008,104240.0,104230.0,0.047954]
[1737137460826,0.53765008,104240.0,104230.0,0.13637747]
[1737137461127,0.83475008,104240.0,104230.0,0.13637747]
[1737137461325,1.14235008,104240.0,104230.0,0.13637747]
[1737137461920,1.14235008,104240.0,104230.0,0.1653962]
[1737137462720,0.74876148,104240.0,104230.0,0.1653962]
[1737137463930,0.65346965,104240.0,104230.0,0.1653962]
[1737137464230,0.3036,104240.0,104230.0,0.5261962]
[1737137464432,0.2826,104240.0,104230.0,0.5261962]
[1737137464727,0.2731,104240.0,104230.0,0.5261962]
[1737137466938,0.2531,104240.0,104230.0,0.5261962]
[1737137468929,0.2391,104240.0,104230.0,0.5261962]
[1737137469632,0.2391,104240.0,104230.0,0.43777273]
[1737137469928,0.2391,104240.0,104230.0,0.5261962]
[1737137470135,0.68832347,104240.0,104230.0,0.07697273]
[1737137470431,0.69832347,104240.0,104230.0,0.07697273]
[1737137470733,0.5999,104240.0,104230.0,0.13637747]
[1737137471129,0.2391,104240.0,104230.0,0.13637747]
[1737137471831,0.5999,104240.0,104230.0,0.13637747]
[1737137472934,0.5999,104240.0,104230.0,0.047954]
[1737137474329,0.69832347,104240.0,104220.0,0.02930309]
[1737137474530,0.3608,104230.0,104220.0,0.047958]
[1737137474729,0.44922347,104230.0,104220.0,0.047958]
[1737137474930,0.44922347,104230.0,104210.0,0.02969341]
[1737137475231,0.6544,104220.0,104210.0,0.047963]
[1737137475428,0.74282347,104220.0,104210.0,0.047963]
[1737137475630,0.84124694,104220.0,104200.0,0.1]
[1737137475827,0.44922347,104210.0,104200.0,0.1]
[1737137476139,0.24994179,104210.0,104200.0,0.23639147]
[1737137476338,0.24994179,104210.0,104200.0,0.18845053]
[1737137476534,0.61074179,104210.0,104200.0,0.18845053]
[1737137477237,0.61074179,104210.0,104200.0,0.21762362]
[1737137477435,0.92374179,104210.0,104200.0,0.21762362]
[1737137477835,0.92374179,104210.0,104200.0,0.21756362]
[1737137478238,1.24584179,104210.0,104200.0,0.21756362]
[1737137480136,0.84185565,104210.0,104200.0,0.21756362]
[1737137480337,0.78085565,104210.0,104200.0,0.21756362]
[1737137480735,0.75785565,104210.0,104200.0,0.57836362]
[1737137481040,0.19363975,104210.0,104200.0,0.57836362]
[1737137481242,0.19363975,104210.0,104200.0,0.87386362]
[1737137482741,0.18433975,104210.0,104200.0,0.87386362]
[1737137482934,0.88297477,104230.0,104200.0,0.87386362]
[1737137483233,0.88297477,104230.0,104220.0,0.13638147]
[1737137483733,0.683,104230.0,104220.0,0.13638147]
[1737137484139,0.3222,104230.0,104220.0,0.13638147]
[1737137484332,0.57077477,104240.0,104230.0,0.047954]
[1737137484333,0.45264477,104240.0,104230.0,0.047954]
[1737137484538,0.34075461,104240.0,104230.0,0.49717747]
[1737137484733,0.02435461,104240.0,104230.0,0.49717747]
[1737137484933,0.30541171,104260.0,104250.0,0.047945]
[1737137485139,0.18103309,104260.0,104250.0,0.13636847]
[1737137485446,0.5843426,104270.0,104260.0,0.04794]
[1737137485636,0.5319026,104270.0,104260.0,0.13636347]
[1737137485838,0.30336,104270.0,104260.0,0.13636347]
[1737137486033,0.3038,104270.0,104260.0,0.13636347]
[1737137486845,0.3038,104270.0,104260.0,0.04794]
[1737137487347,0.75302347,104270.0,104250.0,0.13636747]
[1737137487547,0.3177,104260.0,104250.0,0.047944]
[1737137487742,0.6299,104260.0,104250.0,0.13636747]
[1737137488451,0.9417,104260.0,104250.0,0.13636747]
[1737137488944,0.9417,104260.0,104250.0,0.18268282]
[1737137489150,0.3122,104260.0,104250.0,0.18268282]
[1737137489350,0.29301646,104260.0,104250.0,0.18268282]
[1737137490157,0.29301646,104260.0,104250.0,0.54348282]
[1737137492455,0.27309646,104260.0,104250.0,0.63190629]
[1737137492752,0.9903,104280.0,104270.0,0.047935]
[1737137493053,1.04054187,104280.0,104260.0,0.047938]
[1737137493248,0.3608,104270.0,104260.0,0.047938]
[1737137493449,0.6295,104280.0,104260.0,0.49716147]
[1737137493652,0.6295,104280.0,104270.0,0.13635847]
[1737137493947,0.9903,104280.0,104270.0,0.047935]
[1737137494154,0.6295,104280.0,104270.0,0.13635847]
[1737137494547,0.3608,104290.0,104260.0,0.408739]
[1737137494747,0.9924,104300.0,104280.0,0.18427947]
[1737137494948,0.6316,104300.0,104290.0,0.13634947]
[1737137495152,0.6316,104300.0,104290.0,0.49714947]
[1737137495452,0.5624226,104310.0,104300.0,0.047922]
[1737137495653,0.64508,104310.0,104300.0,0.13634547]
[1737137496449,0.64508,104310.0,104300.0,0.047922]
[1737137496755,0.64508,104310.0,104290.0,0.49714747]
[1737137498853,1.04820347,104310.0,104290.0,0.3608]
[1737137499249,0.44922347,104300.0,104290.0,0.04638246]
[1737137499548,0.44922347,104300.0,104280.0,0.408729]
[1737137500053,0.44922347,104300.0,104290.0,0.08842347]
[1737137500054,0.3608,104300.0,104290.0,0.08842347]
[1737137500253,0.3608,104300.0,104290.0,0.13634947]
[1737137500451,0.95978,104310.0,104290.0,0.13634947]
[1737137500452,0.95978,104310.0,104300.0,0.047922]
[1737137500654,0.95978,104310.0,104290.0,0.76552347]
[1737137500848,0.95978,104310.0,104290.0,0.45264847]
[1737137501054,1.04820347,104310.0,104290.0,0.364225]
[1737137501248,1.04820347,104310.0,104290.0,0.047925]
[1737137502647,0.95978,104310.0,104290.0,0.13634847]
[1737137503058,0.95978,104310.0,104300.0,0.08842347]
[1737137503358,0.95978,104310.0,104290.0,0.13634847]
[1737137505861,0.95978,104310.0,104300.0,0.08842347]
[1737137506045,0.95978,104310.0,104300.0,0.13634547]
[1737137506046,0.6259,104310.0,104300.0,0.13634547]
[1737137506448,0.9867,104310.0,104290.0,0.49714847]
[1737137506652,0.6259,104310.0,104290.0,0.49714847]
[1737137507065,0.71432347,104310.0,104290.0,0.08842347]
[1737137507357,0.6259,104310.0,104300.0,0.08842347]
[1737137507556,0.6259,104310.0,104290.0,0.49714847]
[1737137507754,0.6259,104310.0,104290.0,0.08842347]
[1737137507954,0.6259,104310.0,104290.0,0.13634947]
[1737137508354,0.6259,104310.0,104290.0,0.49714947]
[1737137508553,0.9867,104310.0,104290.0,0.49714947]
[1737137509066,0.9867,104310.0,104290.0,0.48968614]
[1737137509362,1.07512347,104310.0,104290.0,0.49714947]
[1737137510258,0.9867,104310.0,104290.0,0.49714947]
[1737137512765,1.07512347,104310.0,104290.0,0.3608]
[1737137512966,0.3608,104300.0,104280.0,0.54382657]
[1737137513272,0.44922347,104300.0,104280.0,0.4554031]
[1737137513566,0.3608,104300.0,104280.0,0.0466741]
[1737137513764,0.6526,104290.0,104270.0,0.81345647]
[1737137513968,0.6526,104290.0,104280.0,0.08842347]
[1737137514765,0.2918,104290.0,104280.0,0.08842347]
[1737137515358,0.2918,104290.0,104270.0,0.85835175]
[1737137515558,0.2918,104290.0,104280.0,0.08842347]
[1737137517672,0.2918,104290.0,104270.0,0.85835075]
[1737137519769,0.2918,104290.0,104270.0,0.90628275]
[1737137519968,0.2918,104290.0,104280.0,0.13635447]
[1737137520167,0.6259,104310.0,104280.0,0.58557794]
[1737137520372,0.51270839,104310.0,104300.0,0.44922347]
[1737137520677,0.25960427,104320.0,104310.0,0.047917]
[1737137520970,0.25960427,104320.0,104310.0,0.13634047]
[1737137521367,0.25960427,104320.0,104300.0,0.80664447]
[1737137521567,0.76372347,104330.0,104300.0,0.80664447]
[1737137522167,0.76372347,104330.0,104310.0,0.08842347]
[1737137522372,0.6753,104330.0,104320.0,0.08842347]
[1737137522577,0.362238,104340.0,104320.0,0.13633147]
[1737137522773,0.9038426,104360.0,104330.0,0.58555394]
[1737137523073,0.9038426,104360.0,104350.0,0.08842347]
[1737137523277,0.5430426,104360.0,104350.0,0.13632247]
[1737137523763,0.2285426,104360.0,104350.0,0.13632247]
[1737137524169,0.2285426,104360.0,104350.0,0.82032247]
[1737137524374,0.6356,104370.0,104350.0,0.82032247]
[1737137524670,0.9964,104370.0,104360.0,0.08842347]
[1737137525176,0.9964,104370.0,104350.0,0.371099]
[1737137525177,0.9964,104370.0,104350.0,0.08842347]
[1737137525677,0.9964,104370.0,104360.0,0.08842347]
[1737137525874,0.3187,104370.0,104350.0,0.3608]
[1737137526079,0.3608,104370.0,104360.0,0.13631747]
[1737137526281,0.7216,104370.0,104360.0,0.13631747]
[1737137526579,0.71338825,104370.0,104360.0,0.13631747]
[1737137527072,0.71338825,104370.0,104350.0,0.047898]
[1737137527263,0.3608,104360.0,104350.0,0.13632147]
[1737137528167,0.3608,104360.0,104350.0,0.08842347]
[1737137529373,0.3608,104360.0,104350.0,0.13218306]
[1737137529969,0.3608,104360.0,104340.0,0.13218306]
[1737137530174,0.9831,104350.0,104330.0,0.80989006]
[1737137530375,0.3608,104340.0,104330.0,0.85491687]
[1737137530773,0.30930623,104340.0,104330.0,0.85491687]
[1737137530973,0.3608,104350.0,104340.0,0.047903]
[1737137531180,0.3608,104350.0,104340.0,0.18008606]
[1737137531481,0.3608,104350.0,104330.0,0.17720987]
[1737137531781,0.3608,104350.0,104330.0,0.09293481]
[1737137531980,0.3608,104340.0,104330.0,0.09293481]
[1737137532480,0.3608,104340.0,104330.0,0.22511787]
[1737137532881,0.3608,104340.0,104330.0,0.17720987]
[1737137533178,0.6788,104340.0,104330.0,0.17720987]
[1737137533782,0.6788,104340.0,104330.0,0.22511787]
[1737137535375,0.6788,104340.0,104330.0,0.25511787]
[1737137535578,0.3608,104340.0,104330.0,0.25511787]
[1737137535780,0.3608,104340.0,104330.0,0.22511787]
[1737137536677,0.3608,104340.0,104330.0,0.25511787]
[1737137540591,0.3608,104340.0,104330.0,0.07502681]
[1737137541074,0.79128306,104340.0,104330.0,0.07502681]
[1737137541271,0.79128306,104340.0,104300.0,0.57928382]
[1737137541470,0.3608,104310.0,104300.0,0.62720282]
[1737137541670,0.3608,104310.0,104300.0,0.67385811]
[1737137542086,0.32361789,104320.0,104310.0,0.047917]
[1737137542285,0.27971217,104320.0,104310.0,0.18010006]
[1737137542585,0.3608,104320.0,104310.0,0.18010006]
[1737137542877,0.9635,104330.0,104310.0,0.18007212]
[1737137543079,0.3438,104330.0,104320.0,0.18009506]
[1737137543282,0.33992,104340.0,104330.0,0.047908]
[1737137543583,0.33992,104340.0,104320.0,0.50209306]
[1737137543785,0.3608,104330.0,104320.0,0.04791]
[1737137544082,0.49298306,104330.0,104310.0,0.047914]
[1737137544284,0.3608,104320.0,104310.0,0.047914]
[1737137544480,0.3608,104320.0,104310.0,0.047854]
[1737137544872,0.63485,104330.0,104310.0,0.18003706]
[1737137545078,0.662,104340.0,104320.0,0.18009506]
[1737137545279,0.662,104340.0,104330.0,0.13218306]
[1737137545484,0.662,104340.0,104320.0,0.18009506]
[1737137545682,0.662,104340.0,104320.0,0.54089506]
[1737137545878,0.662,104340.0,104320.0,0.18009506]
[1737137546185,0.3608,104330.0,104320.0,0.047912]
[1737137546678,0.33025,104330.0,104320.0,0.18009506]
[1737137546884,0.9541,104340.0,104330.0,0.047908]
[1737137547081,0.9541,104340.0,104320.0,0.79308306]
[1737137547274,0.9541,104340.0,104320.0,0.84099306]
[1737137547677,0.9541,104340.0,104320.0,0.84099206]
[1737137548187,0.5933,104340.0,104330.0,0.54089106]
[1737137548488,0.5933,104340.0,104330.0,0.18009106]
[1737137548683,0.9541,104340.0,104330.0,0.18009106]
[1737137549791,0.9541,104340.0,104330.0,0.13605731]
[1737137550188,0.6652,104350.0,104330.0,0.13605731]
[1737137550487,0.6526,104350.0,104330.0,0.13605631]
[1737137550793,0.3608,104340.0,104320.0,0.82978224]
[1737137550987,0.44894931,104340.0,104320.0,0.03285687]
[1737137551183,0.77374931,104330.0,104310.0,0.13606531]
[1737137551484,0.6856,104330.0,104320.0,0.13606131]
[1737137551685,0.24316,104330.0,104320.0,0.49686131]
[1737137551879,0.2918,104350.0,104330.0,0.047908]
[1737137552095,0.6526,104350.0,104340.0,0.08814931]
[1737137552287,0.6526,104350.0,104340.0,0.13605231]
[1737137552590,0.2918,104350.0,104340.0,0.13605231]
[1737137552981,0.2918,104350.0,104340.0,0.22420162]
[1737137553182,0.2918,104350.0,104340.0,0.13605231]
[1737137554188,0.6526,104350.0,104340.0,0.13605231]
[1737137554992,0.9584,104350.0,104340.0,0.13605231]
[1737137555384,0.9584,104350.0,104340.0,0.08814931]
[1737137555887,1.04654931,104350.0,104320.0,0.08814931]
[1737137556085,0.7216,104330.0,104310.0,0.74366431]
[1737137556290,0.3608,104320.0,104310.0,0.08072414]
[1737137556484,0.3608,104330.0,104310.0,0.08072414]
[1737137556881,0.3608,104320.0,104310.0,0.08072414]
[1737137557096,0.3608,104330.0,104310.0,0.44152414]
[1737137557298,0.9399,104340.0,104320.0,0.13606131]
[1737137557500,1.3007,104340.0,104330.0,0.08814931]
[1737137558099,0.9399,104340.0,104330.0,0.08814931]
[1737137558600,0.3179,104340.0,104330.0,0.08814931]
[1737137558796,0.3179,104340.0,104330.0,0.49685731]
[1737137559708,0.3179,104340.0,104330.0,0.58500662]
[1737137560307,0.0304954,104340.0,104330.0,0.58500662]
[1737137560909,0.0304954,104340.0,104330.0,0.49685731]
[1737137561318,0.3608,104360.0,104340.0,0.047903]
[1737137561611,0.3608,104360.0,104350.0,0.08814931]
[1737137562616,0.3608,104360.0,104350.0,0.08808931]
[1737137564609,0.3608,104360.0,104350.0,0.08074202]
[1737137567617,0.3608,104360.0,104350.0,0.11418744]
[1737137570814,0.3608,104360.0,104310.0,0.23370492]
[1737137571023,0.3608,104330.0,104310.0,0.64242192]
[1737137571218,0.3608,104340.0,104330.0,0.047904]
[1737137572214,0.25301514,104360.0,104350.0,0.047899]
[1737137572415,0.58161523,104370.0,104360.0,0.047894]
[1737137572724,0.3608,104370.0,104360.0,0.22419262]
[1737137573112,0.3608,104380.0,104370.0,0.047889]
[1737137573417,0.32823,104380.0,104370.0,0.17629862]
[1737137573714,0.32823,104380.0,104370.0,0.22418762]
[1737137573921,0.32823,104380.0,104370.0,0.17629862]
[1737137574219,0.32823,104380.0,104370.0,0.08814931]
[1737137574421,0.32823,104380.0,104370.0,0.17629862]
[1737137575717,1.34713,104380.0,104370.0,0.17629862]
[1737137576426,0.3608,104390.0,104370.0,0.22418762]
[1737137576627,0.33952,104390.0,104380.0,0.08814931]
[1737137577626,1.1035,104400.0,104380.0,0.08814931]
[1737137577820,1.1035,104400.0,104390.0,0.08814931]
[1737137578529,1.1035,104400.0,104390.0,0.17629862]
[1737137578824,1.1035,104400.0,104390.0,0.13602931]
[1737137579624,1.1035,104400.0,104390.0,0.22417862]
[1737137579824,1.1035,104400.0,104390.0,0.13602931]
[1737137580419,0.7427,104400.0,104380.0,0.787484]
[1737137580620,1.1035,104400.0,104390.0,0.08814931]
[1737137580820,1.19164931,104400.0,104380.0,0.08814931]
[1737137581013,0.3772,104390.0,104380.0,0.08814931]
[1737137581932,0.3772,104390.0,104380.0,0.13603431]
[1737137582119,0.3772,104390.0,104380.0,0.08814931]
[1737137584623,0.3772,104390.0,104380.0,0.44894931]
[1737137584828,0.3772,104390.0,104380.0,0.08814931]
[1737137587729,0.3772,104390.0,104380.0,0.44894931]
[1737137587925,0.3772,104390.0,104380.0,0.08814931]
[1737137588120,0.3772,104390.0,104380.0,0.44894931]
[1737137588322,0.3772,104390.0,104380.0,0.08814931]
[1737137588931,0.3772,104390.0,104380.0,0.13603431]
[1737137590334,0.3772,104390.0,104380.0,0.08814931]
[1737137592233,0.3772,104390.0,104380.0,0.13603431]
[1737137593534,0.3772,104390.0,104380.0,0.08814931]
[1737137595925,0.3772,104390.0,104380.0,0.04760217]
[1737137600243,0.3772,104390.0,104380.0,0.09548717]
[1737137600436,0.7257,104400.0,104390.0,0.04788]
[1737137600633,0.71625213,104400.0,104390.0,0.49682931]
[1737137601447,0.20778212,104400.0,104390.0,0.49682931]
[1737137603037,0.3608,104410.0,104390.0,0.49682631]
[1737137603242,0.35194995,104410.0,104400.0,0.13602531]
[1737137603443,0.35194995,104410.0,104400.0,0.08814931]
[1737137604045,0.35194995,104410.0,104390.0,1.145678]
[1737137604251,0.35194995,104410.0,104400.0,0.08814931]
[1737137604748,0.67624995,104410.0,104400.0,0.08814931]
[1737137608850,0.67624995,104410.0,104400.0,0.13641011]
[1737137610052,0.67624995,104410.0,104400.0,0.0482608]
[1737137610241,0.67624995,104410.0,104390.0,0.81744931]
[1737137610443,0.76439926,104410.0,104380.0,0.49683131]
[1737137610651,0.3608,104400.0,104380.0,0.49683131]
[1737137611038,0.3608,104400.0,104390.0,0.08814931]
[1737137624259,0.53709862,104400.0,104350.0,0.408698]
[1737137624554,0.44894931,104370.0,104350.0,0.7185]
[1737137624755,0.44894931,104370.0,104350.0,0.44584931]
[1737137624954,0.82554931,104360.0,104340.0,0.08968787]
[1737137625158,0.82554931,104360.0,104330.0,0.3608]
[1737137625159,0.3608,104350.0,104330.0,0.44584931]
[1737137625362,0.3608,104350.0,104340.0,0.08814931]
[1737137626264,1.091,104360.0,104340.0,0.17629862]
[1737137626466,8.463e-05,104350.0,104330.0,0.81429784]
[1737137626757,6.815e-05,104340.0,104330.0,0.45349784]
[1737137626955,6.815e-05,104340.0,104330.0,0.40559284]
[1737137627352,6.815e-05,104340.0,104330.0,0.39980204]
[1737137627859,6.815e-05,104340.0,104330.0,0.48795135]
[1737137628267,6.815e-05,104340.0,104330.0,0.53585935]
[1737137628762,6.815e-05,104340.0,104330.0,0.89665935]
[1737137628954,1.091,104360.0,104330.0,0.89665935]
[1737137628955,1.03828837,104360.0,104340.0,0.047903]
[1737137629155,0.3608,104370.0,104350.0,0.13604531]
[1737137629454,0.3608,104370.0,104360.0,0.08814931]
[1737137630456,0.3608,104370.0,104360.0,0.47044931]
[1737137633361,0.44894931,104370.0,104350.0,0.3608]
[1737137633564,0.3608,104360.0,104340.0,0.86925231]
[1737137634264,0.3608,104360.0,104340.0,0.82134931]
[1737137634567,0.3608,104350.0,104340.0,0.46054931]
[1737137634761,0.44894931,104360.0,104340.0,0.46054931]
[1737137635067,0.08814931,104360.0,104340.0,0.46054931]
[1737137635363,0.44894931,104360.0,104340.0,0.46054931]
[1737137636060,0.3608,104360.0,104340.0,0.46054931]
[1737137636457,0.3608,104350.0,104330.0,0.04165478]
[1737137636765,0.3608,104340.0,104330.0,0.12980409]
[1737137639060,0.3608,104340.0,104300.0,0.26718151]
[1737137639260,0.3608,104320.0,104310.0,0.18397931]
[1737137639460,0.3608,104330.0,104310.0,0.13606231]
[1737137639657,0.3608,104330.0,104320.0,0.799108]
[1737137639870,0.31486912,104340.0,104330.0,0.047908]
[1737137640268,0.31486912,104340.0,104330.0,0.13605731]
[1737137640961,0.22368912,104340.0,104330.0,0.22420662]
[1737137641278,0.7413,104350.0,104340.0,0.047903]
[1737137641565,0.29206375,104360.0,104350.0,0.047899]
[1737137641872,0.28276375,104360.0,104350.0,0.13604831]
[1737137642170,0.28276375,104360.0,104320.0,0.01320941]
[1737137642371,0.3608,104340.0,104330.0,0.047905]
[1737137642670,0.30418,104340.0,104330.0,0.047905]
[1737137642872,0.30418,104340.0,104330.0,0.22420362]
[1737137643072,0.30418,104340.0,104330.0,0.13605431]
[1737137643467,0.30418,104340.0,104310.0,0.08814931]
[1737137643771,0.3608,104320.0,104310.0,0.61906032]
[1737137643963,0.3608,104330.0,104310.0,1.14327094]
[1737137644172,0.30418,104340.0,104320.0,0.13606031]
[1737137644369,0.30418,104340.0,104330.0,0.13605731]
[1737137644671,0.30418,104340.0,104310.0,0.13574873]
[1737137644870,0.3608,104330.0,104320.0,0.047911]
[1737137645066,0.30418,104340.0,104330.0,0.047908]
[1737137645277,0.2772,104340.0,104330.0,0.13605731]
[1737137645471,0.2772,104340.0,104330.0,0.38255731]
[1737137645775,0.27452888,104340.0,104320.0,0.433411]
[1737137645968,0.3608,104330.0,104320.0,3.59e-05]
[1737137646271,0.3568,104330.0,104320.0,0.347911]
[1737137646469,0.06947608,104330.0,104320.0,0.347911]
[1737137646976,0.04757608,104330.0,104320.0,0.347911]
[1737137647176,0.01151,104330.0,104320.0,0.38142403]
[1737137647478,0.00652,104330.0,104320.0,0.047911]
[1737137647773,0.00652,104330.0,104320.0,0.22420962]
[1737137647974,0.00652,104330.0,104320.0,0.13606031]
[1737137648369,0.3468,104330.0,104320.0,0.13606031]
[1737137648569,0.33497,104330.0,104310.0,0.047917]
[1737137648868,0.33497,104330.0,104320.0,0.13606031]
[1737137649066,0.69577,104330.0,104320.0,0.44960962]
[1737137649379,0.58759,104330.0,104320.0,0.44960962]
[1737137649581,0.58366192,104330.0,104320.0,0.44960962]
[1737137649764,0.58366192,104330.0,104320.0,0.08814931]
[1737137649969,0.58366192,104330.0,104320.0,0.17629862]
[1737137650274,0.57422192,104330.0,104320.0,0.17629862]
[1737137650474,0.57422192,104330.0,104320.0,0.22420962]
[1737137650980,0.57422192,104330.0,104320.0,0.13606031]
[1737137651774,0.54761192,104330.0,104320.0,0.13606031]
[1737137652571,0.52220192,104330.0,104320.0,0.13606031]
[1737137652874,0.344012,104370.0,104350.0,0.047899]
[1737137653070,0.22217971,104370.0,104360.0,0.22419262]
[1737137653273,0.53507085,104370.0,104360.0,0.13604331]
[1737137653468,0.52547085,104370.0,104360.0,0.13604331]
[1737137654168,0.52547085,104370.0,104350.0,0.13604631]
[1737137654364,0.3608,104360.0,104350.0,0.047897]
[1737137654975,0.3608,104360.0,104340.0,0.13605031]
[1737137655170,0.3608,104360.0,104350.0,0.08814931]
[1737137655568,0.3608,104360.0,104350.0,0.13604831]
[1737137655969,0.6626,104360.0,104350.0,0.13604831]
[1737137656173,1.0367,104360.0,104350.0,0.13604831]
[1737137656872,1.427,104360.0,104350.0,0.13604831]
[1737137657576,1.427,104360.0,104350.0,0.047899]
[1737137657970,1.41137969,104360.0,104350.0,0.047899]
[1737137659265,1.41137969,104360.0,104350.0,0.13604831]